bitfinex/quotes_ETHUSD_20250507
["timestamp","ask_amount","ask_price","bid_price","bid_amount"]
[1746627767770,8.46544214,1829.7,1829.5,5.591]
[1746627767973,0.16908482,1829.6,1829.5,5.591]
[1746627768204,8.46544214,1829.7,1829.5,5.591]
[1746627768506,0.16908482,1829.6,1829.5,5.591]
[1746627768999,0.16908482,1829.6,1829.5,8.591]
[1746627769194,8.46517157,1829.8,1829.5,8.591]
[1746627769401,0.16908482,1829.6,1829.5,8.591]
[1746627769603,5.46541201,1829.7,1829.5,8.591]
[1746627769803,0.16908482,1829.6,1829.5,8.591]
[1746627770004,5.46541201,1829.7,1829.5,8.591]
[1746627770192,0.16908482,1829.6,1829.5,8.591]
[1746627770394,8.46517157,1829.8,1829.5,8.591]
[1746627770699,0.16908482,1829.6,1829.5,8.591]
[1746627770905,8.46517157,1829.8,1829.5,8.591]
[1746627771408,5.63499239,1829.7,1829.5,8.591]
[1746627771603,0.16956231,1829.7,1829.5,8.591]
[1746627772002,5.63502814,1829.7,1829.5,8.591]
[1746627773822,0.16956231,1829.7,1829.5,8.591]
[1746627774175,5.63502863,1829.7,1829.5,8.591]
[1746627775402,0.16956231,1829.7,1829.5,8.591]
[1746627776576,5.63497778,1829.7,1829.5,8.591]
[1746627776874,5.46567555,1829.6,1829.5,5.591]
[1746627777326,5.6322885,1829.6,1829.5,5.591]
[1746627779012,0.16661295,1829.6,1829.5,5.591]
[1746627779312,5.46540198,1829.7,1829.5,5.591]
[1746627779517,0.16661295,1829.6,1829.5,5.591]
[1746627779879,5.46567555,1829.6,1829.5,5.591]
[1746627780114,5.6322885,1829.6,1829.5,5.591]
[1746627780320,6.4242885,1829.6,1829.5,5.591]
[1746627780715,6.48882272,1829.6,1829.5,5.591]
[1746627781927,6.4242885,1829.6,1829.5,5.591]
[1746627782085,5.6322885,1829.6,1829.5,5.591]
[1746627782620,5.69682272,1829.6,1829.5,5.591]
[1746627783534,6.03543313,1829.6,1829.5,5.591]
[1746627783691,0.56975758,1829.6,1829.5,5.591]
[1746627784232,6.03543313,1829.6,1829.5,5.591]
[1746627784536,6.09996735,1829.6,1829.5,5.591]
[1746627785027,6.03543313,1829.6,1829.5,5.591]
[1746627785227,6.09996735,1829.6,1829.5,5.591]
[1746627786305,0.23114717,1829.6,1829.5,5.591]
[1746627786513,0.16661295,1829.6,1829.5,6.3602]
[1746627786827,8.46542283,1829.7,1829.5,6.3602]
[1746627786998,0.16403385,1829.6,1829.5,6.3602]
[1746627787196,8.46542283,1829.7,1829.5,6.3602]
[1746627787395,0.16403385,1829.6,1829.5,6.3602]
[1746627787619,3.0,1829.7,1829.5,6.3602]
[1746627787843,0.16403385,1829.6,1829.5,6.3602]
[1746627788000,0.16403385,1829.6,1829.5,7.35087592]
[1746627788201,8.82920573,1829.9,1829.6,3.0]
[1746627788401,5.63012222,1829.8,1829.6,3.0]
[1746627788621,5.63012222,1829.8,1829.5,5.591]
[1746627788622,8.8297983,1829.7,1829.5,5.591]
[1746627788894,0.16458664,1829.6,1829.5,5.591]
[1746627789247,8.89433252,1829.7,1829.5,5.591]
[1746627789404,0.16458664,1829.6,1829.5,5.591]
[1746627789608,8.89433252,1829.7,1829.5,5.591]
[1746627789803,0.16458664,1829.6,1829.5,5.591]
[1746627790038,3.36442147,1829.7,1829.5,5.591]
[1746627790215,0.16458664,1829.6,1829.5,5.591]
[1746627790410,5.52971901,1829.8,1829.5,5.591]
[1746627790913,0.16506414,1829.7,1829.5,5.591]
[1746627792651,5.63046738,1829.7,1829.5,5.591]
[1746627792857,6.74648602,1829.7,1829.5,5.591]
[1746627793354,5.46567555,1829.6,1829.5,5.591]
[1746627793855,5.63026219,1829.6,1829.5,5.591]
[1746627794415,0.16458664,1829.6,1829.5,5.591]
[1746627794616,10.01052405,1829.7,1829.5,5.591]
[1746627794927,5.46526286,1829.8,1829.5,5.591]
[1746627795123,0.16539477,1829.6,1829.5,5.591]
[1746627795332,5.46526286,1829.8,1829.5,5.591]
[1746627795516,0.16512072,1829.6,1829.5,5.591]
[1746627795719,5.46526286,1829.8,1829.5,5.591]
[1746627795917,0.1653003,1829.6,1829.5,5.591]
[1746627796118,5.52979708,1829.8,1829.5,5.591]
[1746627796523,5.63119437,1829.7,1829.5,5.591]
[1746627797553,8.99561584,1829.7,1829.5,5.591]
[1746627797752,9.06015006,1829.7,1829.5,5.591]
[1746627797935,0.7669,1829.6,1829.5,5.591]
[1746627798337,6.3983918,1829.6,1829.5,5.591]
[1746627799120,0.93271625,1829.6,1829.5,5.591]
[1746627799423,0.16581625,1829.6,1829.5,5.591]
[1746627799732,9.60623809,1829.7,1829.5,5.591]
[1746627799932,0.16581625,1829.6,1829.5,7.2085]
[1746627800462,5.46461022,1830.0,1829.7,3.0]
[1746627802665,8.82903169,1830.0,1829.7,3.0]
[1746627803066,14.29376058,1830.0,1829.7,3.0]
[1746627803234,5.46478935,1829.9,1829.7,3.0]
[1746627803430,8.82903169,1830.0,1829.7,3.0]
[1746627805366,3.36442147,1830.0,1829.7,3.05464736]
[1746627807872,9.60486418,1830.2,1829.9,3.0]
[1746627808042,8.82846418,1830.2,1829.9,8.588]
[1746627808772,0.15280593,1830.1,1829.9,8.588]
[1746627809072,8.82846418,1830.2,1829.9,8.588]
[1746627809273,0.15241838,1830.0,1829.9,8.588]
[1746627809567,8.82846418,1830.2,1829.9,8.588]
[1746627809757,0.15241838,1830.0,1829.9,8.588]
[1746627809960,8.82846418,1830.2,1829.9,8.588]
[1746627810171,0.15563521,1830.0,1829.9,8.588]
[1746627810470,3.52014644,1830.0,1829.9,8.588]
[1746627814374,0.15572497,1830.0,1829.9,8.588]
[1746627814877,0.15555216,1830.0,1829.9,8.588]
[1746627815377,5.46379457,1830.3,1829.9,8.588]
[1746627815582,0.15555216,1830.0,1829.9,8.588]
[1746627815879,0.15555216,1830.0,1829.9,10.36881837]
[1746627816043,8.89242568,1830.4,1829.9,10.36881837]
[1746627816243,0.15698384,1830.3,1829.9,10.36881837]
[1746627816443,0.15698384,1830.3,1830.2,0.7879]
[1746627816766,9.65042118,1830.6,1830.3,3.0]
[1746627816767,10.01484265,1830.6,1830.3,3.0]
[1746627817081,3.76829285,1830.6,1830.3,8.588]
[1746627817274,5.46250331,1830.7,1830.3,8.588]
[1746627817275,3.36442147,1830.7,1830.5,3.0]
[1746627817649,3.77615689,1830.7,1830.5,3.0]
[1746627819238,0.06453422,1830.8,1830.5,3.8279]
[1746627819444,3.42895569,1830.9,1830.5,3.8279]
[1746627819644,3.36442147,1830.9,1830.6,0.38279]
[1746627819966,3.36442147,1830.9,1830.7,8.583]
[1746627821751,3.36442147,1830.9,1830.8,0.8117]
[1746627821987,0.41653448,1831.0,1830.8,0.8117]
[1746627822188,8.89032503,1831.1,1830.8,0.8117]
[1746627822387,8.89032503,1831.1,1830.8,1.75117]
[1746627823189,3.36442147,1831.1,1830.8,1.80578707]
[1746627823494,3.36442147,1831.3,1830.9,3.0]
[1746627823696,0.7798,1831.4,1831.0,0.3]
[1746627823697,6.24021118,1831.4,1831.0,0.3]
[1746627823849,6.24021118,1831.4,1831.1,5.581]
[1746627824053,5.5249454,1831.4,1831.1,6.3373]
[1746627824248,5.92865656,1831.4,1831.1,7.00103]
[1746627824677,3.36442147,1831.3,1831.1,7.00103]
[1746627828014,3.36442147,1831.6,1831.2,0.05460731]
[1746627828194,4.12512147,1831.9,1831.4,3.7533]
[1746627828505,6.33741653,1832.1,1831.6,3.0]
[1746627828690,6.33741653,1832.1,1831.5,5.63559529]
[1746627828691,4.24345569,1832.1,1831.8,3.0]
[1746627828860,5.93073975,1832.2,1831.8,3.0]
[1746627829198,3.36442147,1832.1,1831.8,3.0]
[1746627829380,8.82274742,1832.1,1831.9,5.581]
[1746627829758,3.42895569,1832.1,1831.9,5.581]
[1746627829962,9.29520116,1832.2,1831.9,5.581]
[1746627830200,3.83709468,1832.2,1831.9,5.581]
[1746627830577,9.29502561,1832.2,1831.9,5.581]
[1746627830803,9.23049139,1832.2,1831.9,6.44455861]
[1746627831181,6.27223602,1832.3,1831.9,6.44455861]
[1746627831383,8.82185501,1832.4,1832.0,0.8068]
[1746627831586,3.42895569,1832.4,1832.0,0.8068]
[1746627831782,5.45690572,1832.6,1832.2,3.0]
[1746627831964,5.45690572,1832.6,1832.4,3.0]
[1746627832297,5.45702592,1832.5,1832.4,3.0]
[1746627832492,5.45690572,1832.6,1832.4,3.0]
[1746627832493,5.45688305,1832.6,1832.4,3.0]
[1746627832704,10.91385193,1832.6,1832.4,3.0]
[1746627832902,5.45702592,1832.5,1832.4,3.0]
[1746627833100,5.45684222,1832.6,1832.4,3.0]
[1746627833963,5.45702592,1832.5,1832.4,3.0]
[1746627834161,5.45684222,1832.6,1832.4,3.0]
[1746627835263,5.45684222,1832.6,1832.4,3.96882]
[1746627835868,10.91382054,1832.6,1832.4,3.96882]
[1746627836300,5.45702592,1832.5,1832.4,3.96882]
[1746627837000,5.45690353,1832.6,1832.4,3.96882]
[1746627837195,5.45672814,1832.6,1832.4,3.96882]
[1746627837505,5.45702592,1832.5,1832.4,3.96882]
[1746627838710,5.60810827,1832.5,1832.4,3.96882]
[1746627838920,0.15108235,1832.5,1832.4,3.96882]
[1746627839082,0.15108235,1832.5,1832.4,4.79628891]
[1746627839294,5.87412792,1833.0,1832.7,3.8316]
[1746627839480,5.60695271,1832.9,1832.8,5.577]
[1746627840469,5.60685199,1832.9,1832.8,5.577]
[1746627846515,0.15101698,1832.9,1832.8,6.3681]
[1746627846885,5.60685199,1832.9,1832.8,6.3681]
[1746627847085,0.15101698,1832.9,1832.8,6.3681]
[1746627847480,0.15101698,1832.9,1832.8,5.577]
[1746627847819,5.60685199,1832.9,1832.8,5.575]
[1746627848322,5.67138621,1832.9,1832.8,5.575]
[1746627848522,6.50438621,1832.9,1832.8,5.575]
[1746627851509,5.67138621,1832.9,1832.8,5.575]
[1746627851703,0.15101698,1832.9,1832.8,5.575]
[1746627851933,0.15101698,1832.9,1832.8,6.3323]
[1746627852223,5.60685199,1832.9,1832.8,6.3323]
[1746627853124,0.15101698,1832.9,1832.8,6.3323]
[1746627853511,0.15101698,1832.9,1832.8,7.32008704]
[1746627853822,5.45528747,1833.1,1832.9,3.0]
[1746627854027,0.15134087,1833.0,1832.9,3.0]
[1746627854430,5.4544823,1833.4,1832.9,3.8152]
[1746627854594,5.591998,1833.3,1833.1,3.0]
[1746627854792,5.591998,1833.3,1833.2,5.57]
[1746627855218,8.94410957,1833.3,1833.2,5.57]
[1746627858048,5.591998,1833.3,1833.2,5.57]
[1746627862123,0.13734734,1833.3,1833.2,5.57]
[1746627862519,5.591998,1833.3,1833.2,5.57]
[1746627862693,5.591998,1833.3,1833.2,6.427]
[1746627863309,5.591998,1833.3,1833.2,5.57]
[1746627864429,0.13734734,1833.3,1833.2,5.57]
[1746627864729,0.13734734,1833.3,1833.2,6.3995]
[1746627865031,10.90841409,1833.5,1833.3,3.0]
[1746627865214,0.13961917,1833.4,1833.3,3.0]
[1746627865415,0.13961917,1833.4,1833.3,3.93995]
[1746627866005,14.26001807,1833.6,1833.3,3.93995]
[1746627866203,0.14009464,1833.5,1833.3,3.93995]
[1746627866439,0.14009464,1833.5,1833.4,0.8063382]
[1746627866734,5.4535152,1833.7,1833.5,3.0]
[1746627868253,8.80562677,1833.7,1833.5,3.0]
[1746627868458,8.80562677,1833.7,1833.6,5.569]
[1746627868630,8.94725417,1833.7,1833.6,5.569]
[1746627869251,3.49373897,1833.7,1833.6,5.569]
[1746627869450,0.1416274,1833.7,1833.6,6.4259]
[1746627870447,0.1416274,1833.7,1833.6,10.2274]
[1746627871477,0.1416274,1833.7,1833.6,10.7774]
[1746627872463,0.1416274,1833.7,1833.6,11.28370607]
[1746627874738,0.66666667,1833.8,1833.7,0.7598]
[1746627874938,0.66666667,1833.8,1833.7,1.88400061]
[1746627877152,0.66666667,1833.8,1833.7,1.9385281]
[1746627877355,0.66666667,1833.8,1833.7,1.88400061]
[1746627879338,0.66666667,1833.8,1833.7,1.89330061]
[1746627879538,0.66666667,1833.8,1833.7,2.44330061]
[1746627880433,0.66666667,1833.8,1833.7,2.28220061]
[1746627880835,0.66666667,1833.8,1833.7,2.33671993]
[1746627881035,0.66666667,1833.8,1833.7,2.28220061]
[1746627881275,0.79088341,1833.8,1833.7,2.78769934]
[1746627882070,0.79088341,1833.8,1833.7,22.43569934]
[1746627882368,0.66666667,1833.8,1833.7,22.43569934]
[1746627882983,0.79035748,1833.8,1833.7,22.43569934]
[1746627883277,0.66666667,1833.8,1833.7,22.43569934]
[1746627883483,0.79035748,1833.8,1833.7,22.43569934]
[1746627883779,0.66666667,1833.8,1833.7,22.43569934]
[1746627885152,6.24338124,1834.4,1834.1,3.0]
[1746627885377,0.7918,1834.4,1834.2,5.562]
[1746627885558,0.12660462,1834.3,1834.2,6.47271666]
[1746627885954,5.45110367,1834.5,1834.3,3.0]
[1746627886566,0.782,1834.6,1834.3,3.0]
[1746627886763,0.782,1834.6,1834.4,0.5]
[1746627886967,8.80318815,1834.5,1834.4,6.062]
[1746627887169,8.80318815,1834.5,1834.4,5.562]
[1746627889487,3.35211157,1834.5,1834.4,5.562]
[1746627889793,6.23287946,1834.6,1834.4,6.4182]
[1746627891569,9.21959095,1834.7,1834.4,6.4182]
[1746627891768,5.45089977,1834.6,1834.4,5.562]
[1746627892080,9.62378815,1834.5,1834.4,5.562]
[1746627892681,4.17271157,1834.5,1834.4,5.562]
[1746627893393,9.62378815,1834.5,1834.4,5.562]
[1746627893590,4.17271157,1834.5,1834.4,5.562]
[1746627893785,3.35211157,1834.5,1834.4,5.562]
[1746627894008,8.80275378,1834.7,1834.5,3.0]
[1746627895188,8.80275378,1834.7,1834.5,3.05450581]
[1746627895397,3.35211157,1834.7,1834.5,3.05450581]
[1746627895559,8.80260868,1834.7,1834.5,3.05450581]
[1746627896094,8.80260868,1834.7,1834.5,3.0]
[1746627897595,5.45077946,1834.6,1834.5,3.0]
[1746627897963,3.35211157,1834.7,1834.5,3.0]
[1746627897964,8.80277302,1834.7,1834.5,3.0]
[1746627898764,0.13330338,1834.6,1834.5,3.0]
[1746627899099,8.80277302,1834.7,1834.5,3.0]
[1746627899399,6.39268284,1834.6,1834.5,3.0]
[1746627900194,0.13330338,1834.6,1834.5,3.0]
[1746627900376,0.13330338,1834.6,1834.5,3.8562]
[1746627900566,3.35211157,1834.7,1834.5,3.8562]
[1746627900767,0.13330338,1834.6,1834.5,4.91331105]
[1746627901202,3.35211157,1834.9,1834.8,3.0]
[1746627901533,8.80199984,1834.9,1834.8,8.56]
[1746627901666,8.80199984,1834.9,1834.8,5.56]
[1746627901867,9.61679984,1834.9,1834.8,5.56]
[1746627902678,9.68133406,1834.9,1834.8,5.56]
[1746627902879,10.08654685,1834.9,1834.8,5.56]
[1746627906424,6.73443528,1834.9,1834.8,5.56]
[1746627906618,10.08654685,1834.9,1834.8,5.56]
[1746627909120,5.4514701,1834.4,1834.2,3.7826]
[1746627909415,8.80303098,1834.6,1834.5,5.557]
[1746627910882,9.57483098,1834.6,1834.5,5.557]
[1746627911077,5.45164155,1834.4,1834.2,8.557]
[1746627911281,8.8037825,1834.3,1834.2,8.557]
[1746627911782,9.5755825,1834.3,1834.2,8.557]
[1746627913083,9.64011672,1834.3,1834.2,8.557]
[1746627913483,9.5755825,1834.3,1834.2,8.557]
[1746627913698,9.70938731,1834.3,1834.2,8.557]
[1746627914052,9.77392153,1834.3,1834.2,8.557]
[1746627914626,9.70938731,1834.3,1834.2,8.557]
[1746627916321,9.77392153,1834.3,1834.2,8.557]
[1746627917021,9.70938731,1834.3,1834.2,8.557]
[1746627917224,9.70938731,1834.3,1834.2,5.557]
[1746627917409,9.77392153,1834.3,1834.2,5.557]
[1746627918823,9.70938731,1834.3,1834.2,5.557]
[1746627918989,8.93758731,1834.3,1834.2,5.557]
[1746627919191,9.00212153,1834.3,1834.2,5.557]
[1746627919726,5.45285339,1834.0,1833.8,3.0]
[1746627919941,6.22175339,1834.0,1833.9,5.558]
[1746627920143,5.45315737,1833.8,1833.7,19.648]
[1746627920356,5.45345476,1833.7,1833.6,8.558]
[1746627921061,9.62766633,1833.7,1833.6,5.558]
[1746627921651,9.69220055,1833.7,1833.6,5.558]
[1746627923563,6.27955218,1833.6,1833.5,3.61830985]
[1746627923725,5.45433073,1833.5,1833.2,3.0]
[1746627923930,5.45464462,1833.3,1833.2,3.0]
[1746627924115,5.45445478,1833.4,1833.2,3.0]
[1746627924316,5.45445478,1833.4,1833.2,3.8558]
[1746627924559,5.45375909,1833.6,1833.4,3.0]
[1746627924771,8.87044447,1833.7,1833.5,5.558]
[1746627925429,5.87044447,1833.7,1833.5,5.558]
[1746627926355,11.32419498,1833.7,1833.5,5.558]
[1746627927349,5.45360034,1833.7,1833.5,5.558]
[1746627927554,5.45325029,1833.8,1833.5,6.4192538]
[1746627927753,5.45297938,1833.9,1833.6,3.05453334]
[1746627928059,5.45242891,1834.1,1833.8,3.0]
[1746627928353,8.86879373,1834.2,1833.9,5.559]
[1746627928552,5.45228542,1834.1,1833.9,6.4203526]
[1746627928732,0.10977234,1834.0,1833.9,6.4203526]
[1746627929125,5.45228088,1834.1,1833.9,6.4203526]
[1746627929474,0.10977234,1834.0,1833.9,6.4203526]
[1746627929851,8.80425951,1834.2,1833.9,6.4203526]
[1746627930033,0.1019212,1834.0,1833.9,6.4203526]
[1746627930231,8.80425951,1834.2,1833.9,6.4203526]
[1746627930442,0.1019212,1834.0,1833.9,6.4203526]
[1746627930620,8.80425951,1834.2,1833.9,6.4203526]
[1746627930825,0.1019212,1834.0,1833.9,6.4203526]
[1746627931024,5.45227575,1834.1,1833.9,6.4203526]
[1746627931251,0.1019212,1834.0,1833.9,6.4203526]
[1746627932359,8.90659547,1834.0,1833.9,5.559]
[1746627933564,3.45403277,1834.0,1833.9,5.559]
[1746627933863,8.90659547,1834.0,1833.9,5.559]
[1746627934333,5.45345476,1833.7,1833.6,8.559]
[1746627934541,8.80556633,1833.7,1833.6,8.559]
[1746627934757,3.35211157,1833.7,1833.6,8.559]
[1746627935273,8.80556633,1833.7,1833.6,3.0]
[1746627935437,5.45375218,1833.6,1833.5,5.559]
[1746627937662,6.27415218,1833.6,1833.5,5.559]
[1746627937864,14.25926708,1833.7,1833.5,5.559]
[1746627938067,8.80556633,1833.7,1833.5,5.559]
[1746627938255,5.5182864,1833.6,1833.5,5.559]
[1746627939342,6.3356864,1833.6,1833.5,5.559]
[1746627940071,6.27115218,1833.6,1833.5,5.559]
[1746627940367,6.3356864,1833.6,1833.5,5.559]
[1746627941068,5.45407869,1833.5,1833.2,8.61154298]
[1746627941266,8.80619026,1833.5,1833.3,0.8611543]
[1746627942362,3.35211157,1833.5,1833.3,0.8611543]
[1746627942564,8.80569614,1833.7,1833.4,3.0]
[1746627942873,8.80569614,1833.7,1833.4,3.87083789]
[1746627943073,8.80569614,1833.7,1833.4,3.8163]
[1746627943260,5.45376895,1833.6,1833.4,3.8163]
[1746627943566,5.45376895,1833.6,1833.4,4.28404543]
[1746627943772,5.45404963,1833.5,1833.4,3.46774543]
[1746627943959,5.45376895,1833.6,1833.4,3.46774543]
[1746627944569,10.90778009,1833.6,1833.4,3.46774543]
[1746627944872,5.45376895,1833.6,1833.4,3.46774543]
[1746627946166,8.80573029,1833.7,1833.4,3.46774543]
[1746627946476,8.80573029,1833.7,1833.5,0.34677454]
[1746627946838,14.25946584,1833.7,1833.5,0.34677454]
[1746627947044,8.80573029,1833.7,1833.5,0.34677454]
[1746627947283,14.25942377,1833.7,1833.4,3.05453793]
[1746627947443,8.80573029,1833.7,1833.4,3.05453793]
[1746627947773,8.45261639,1834.0,1833.4,3.05453793]
[1746627947774,6.23902389,1834.0,1833.6,3.0]
[1746627948084,5.45315737,1833.8,1833.7,5.557]
[1746627948237,5.45305081,1833.9,1833.7,5.557]
[1746627948441,5.45315737,1833.8,1833.7,5.557]
[1746627948775,9.59123373,1834.0,1833.7,5.557]
[1746627949276,8.80483373,1834.0,1833.8,3.0]
[1746627949439,14.25763679,1834.0,1833.8,3.0]
[1746627949777,5.45242507,1834.1,1833.8,3.7974]
[1746627950474,0.8004,1834.4,1834.0,3.0]
[1746627950645,5.45168114,1834.3,1834.1,5.557]
[1746627951062,8.80379271,1834.3,1834.1,5.557]
[1746627951436,3.35211157,1834.3,1834.2,3.0]
[1746627951687,5.45150444,1834.4,1834.2,3.0]
[1746627952365,10.9031193,1834.4,1834.2,3.0]
[1746627952676,8.8037825,1834.3,1834.2,3.0]
[1746627954972,3.35211157,1834.3,1834.2,3.0]
[1746627955472,8.8037825,1834.3,1834.2,3.0]
[1746627956077,3.35211157,1834.3,1834.2,3.0]
[1746627956371,3.35211157,1834.3,1834.2,3.93839]
[1746627957273,8.8037825,1834.3,1834.2,3.93839]
[1746627957450,3.35211157,1834.3,1834.2,3.93839]
[1746627957852,8.8037825,1834.3,1834.2,3.93839]
[1746627958061,8.8037825,1834.3,1834.2,3.0]
[1746627958582,3.35211157,1834.3,1834.2,3.0]
[1746627959846,5.45151091,1834.4,1834.2,3.0]
[1746627960055,17.25466939,1834.5,1834.2,3.0]
[1746627960385,5.45139471,1834.4,1834.2,3.0]
[1746627961080,5.45141078,1834.4,1834.2,3.0]
[1746627961284,8.8037825,1834.3,1834.2,3.0]
[1746627963587,5.4525627,1834.0,1833.9,3.0]
[1746627963756,3.35211157,1834.0,1833.9,3.0]
[1746627965190,8.80467427,1834.0,1833.9,3.0]
[1746627969155,3.35211157,1834.0,1833.9,3.0]
[1746627969556,8.80409344,1834.2,1833.9,3.779]
[1746627969868,3.35211157,1834.2,1833.9,4.68902252]
[1746627970187,5.45206372,1834.2,1833.9,4.68902252]
[1746627970856,5.45235579,1834.1,1833.9,4.6345]
[1746627971053,8.80446736,1834.1,1833.9,3.0]
[1746627971285,5.4525627,1834.0,1833.8,5.555]
[1746627971466,8.80497159,1833.9,1833.8,5.555]
[1746627971674,5.45286002,1833.9,1833.8,5.555]
[1746627971879,8.80497159,1833.9,1833.8,5.555]
[1746627972184,14.25745936,1834.0,1833.8,5.555]
[1746627972486,14.25752331,1834.0,1833.8,5.555]
[1746627972782,8.80467427,1834.0,1833.8,5.555]
[1746627972991,8.86920849,1834.0,1833.8,5.555]
[1746627973592,14.32203048,1834.0,1833.8,5.555]
[1746627973798,5.45286002,1833.9,1833.8,5.555]
[1746627974397,5.45375218,1833.6,1833.5,5.553]
[1746627974593,8.80586375,1833.6,1833.5,5.553]
[1746627974784,3.35211157,1833.6,1833.5,5.553]
[1746627975960,8.80544029,1833.8,1833.5,5.553]
[1746627976162,8.86997451,1833.8,1833.5,5.553]
[1746627977063,5.4535486,1833.7,1833.5,5.553]
[1746627977987,8.80544029,1833.8,1833.5,5.553]
[1746627978174,8.86997451,1833.8,1833.5,5.553]
[1746627978374,3.41664579,1833.8,1833.5,5.553]
[1746627978594,3.35211157,1833.8,1833.5,9.16283829]
[1746627978800,0.8315,1834.1,1833.7,3.0]
[1746627978999,5.45268178,1834.0,1833.7,3.0]
[1746627979294,8.80479335,1834.0,1833.7,3.0]
[1746627980703,5.45288837,1833.9,1833.7,3.0]
[1746627981478,8.80479335,1834.0,1833.7,3.0]
[1746627981676,14.25764016,1834.0,1833.8,5.554]
[1746627981889,8.80479335,1834.0,1833.8,5.554]
[1746627983687,3.35211157,1834.0,1833.8,5.554]
[1746627983889,3.35211157,1834.0,1833.8,6.4094]
[1746627984301,3.0,1834.1,1833.9,3.0]
[1746627984503,3.0,1834.1,1834.0,0.765]
[1746627985095,5.45212738,1834.2,1834.0,0.765]
[1746627985877,9.33760127,1834.3,1834.0,0.765]
[1746627986284,5.45197487,1834.2,1834.0,0.765]
[1746627986612,8.80408644,1834.2,1834.0,0.765]
[1746627987603,8.45186705,1834.3,1834.2,3.0]
[1746627987813,8.80397862,1834.3,1834.2,3.0]
[1746627988029,3.35211157,1834.3,1834.2,3.0]
[1746627988378,8.80369659,1834.4,1834.2,3.0]
[1746627988623,14.31983106,1834.4,1834.2,3.0]
[1746627988798,14.25529684,1834.4,1834.2,3.0]
[1746627989001,5.4520703,1834.2,1833.9,3.0]
[1746627989224,8.80418187,1834.2,1834.0,0.3]
[1746627989882,5.45241606,1834.1,1833.9,3.0]
[1746627990586,8.80467427,1834.0,1833.8,5.554]
[1746627990785,5.45286002,1833.9,1833.8,5.554]
[1746627991187,14.25747892,1834.0,1833.8,5.554]
[1746627991646,5.45286002,1833.9,1833.8,5.554]
[1746627992432,3.35211157,1834.1,1833.8,5.554]
[1746627992722,3.0,1834.2,1833.9,3.8132]
[1746627993729,5.45191734,1834.3,1833.9,3.8132]
[1746627993899,10.96839966,1834.3,1833.9,3.8132]
[1746627994320,10.96838107,1834.3,1833.9,3.8132]
[1746627994529,5.51645156,1834.3,1834.0,0.38132]
[1746627994728,5.4520065,1834.2,1834.0,0.38132]
[1746627994926,8.80411807,1834.2,1834.0,0.38132]
[1746627995127,3.35211157,1834.2,1834.0,0.38132]
[1746627995553,3.35211157,1834.2,1834.1,3.0]
[1746627995853,3.35211157,1834.2,1834.1,8.553]
[1746627996827,3.35211157,1834.2,1834.1,9.446432]
[1746627997244,8.80407973,1834.2,1834.1,9.446432]
[1746627997829,8.80407973,1834.2,1834.1,8.553]
[1746627998246,8.86861395,1834.2,1834.1,5.553]
[1746627998419,9.68421395,1834.2,1834.1,5.553]
[1746628001036,9.61967973,1834.2,1834.1,5.553]
[1746628001754,12.68421395,1834.2,1834.1,5.553]
[1746628002062,12.61967973,1834.2,1834.1,5.553]
[1746628002232,11.80407973,1834.2,1834.1,5.553]
[1746628004068,5.45143557,1834.4,1834.1,5.553]
[1746628004240,10.90303933,1834.4,1834.1,6.3064]
[1746628004439,8.80354714,1834.4,1834.1,6.3064]
[1746628004647,5.45168219,1834.3,1834.1,6.93704]
[1746628005029,8.80354714,1834.4,1834.1,6.93704]
[1746628005254,3.41664579,1834.4,1834.1,9.93704]
[1746628005442,3.35211157,1834.4,1834.1,9.93704]
[1746628005858,8.80359754,1834.4,1834.1,4.38404]
[1746628006169,3.35211157,1834.4,1834.2,5.551]
[1746628006746,8.80368229,1834.4,1834.2,5.551]
[1746628007267,8.86821651,1834.4,1834.2,5.551]
[1746628008638,3.35211157,1834.4,1834.2,5.551]
[1746628009037,3.35211157,1834.4,1834.2,6.48144]
[1746628009933,8.80358722,1834.4,1834.2,6.48144]
[1746628010134,3.35211157,1834.4,1834.2,6.48144]
[1746628010437,5.45108501,1834.5,1834.3,3.0]
[1746628010640,3.0,1834.5,1834.3,3.0]
[1746628010965,3.0,1834.5,1834.4,0.7698]
[1746628011868,6.35211157,1834.7,1834.5,3.0]
[1746628012180,3.0,1834.7,1834.5,3.0]
[1746628012377,5.45002485,1834.9,1834.5,3.0]
[1746628012670,5.44969874,1835.0,1834.7,3.0]
[1746628012970,6.34660427,1835.1,1834.7,3.0]
[1746628012971,0.8326,1835.1,1834.7,3.0]
[1746628013135,3.35211157,1834.9,1834.7,3.0]
[1746628013677,8.80213887,1834.9,1834.7,3.0]
[1746628013840,3.35211157,1834.9,1834.7,3.0]
[1746628014041,3.35211157,1835.0,1834.7,3.9906595]
[1746628014371,8.80180676,1835.0,1834.7,3.93616]
[1746628014747,8.80229687,1834.8,1834.7,3.0]
[1746628015775,3.35211157,1834.8,1834.7,3.0]
[1746628016174,8.80188546,1835.0,1834.7,3.0]
[1746628016362,5.44994533,1834.9,1834.7,3.0]
[1746628017061,5.44994533,1834.9,1834.7,3.93616]
[1746628017373,5.45005056,1834.9,1834.7,3.93616]
[1746628017673,8.80216213,1834.9,1834.7,3.93616]
[1746628017869,8.44977734,1835.0,1834.7,3.0]
[1746628018066,8.80201318,1834.9,1834.7,3.0]
[1746628020375,5.45034027,1834.8,1834.6,5.55]
[1746628020576,9.58110151,1834.9,1834.6,5.55]
[1746628020774,5.51462416,1834.9,1834.7,3.7979]
[1746628020972,5.4501853,1834.8,1834.7,3.7979]
[1746628021173,5.45007435,1834.9,1834.7,3.0]
[1746628022480,8.80229687,1834.8,1834.7,3.0]
[1746628023481,3.35211157,1834.8,1834.7,3.0]
[1746628023645,12.57573449,1835.0,1834.7,3.855]